fUSD/lending_fUSD_20240222
["ID","MTS","AMOUNT","RATE_DAILY","PERIOD"]
[314866689,1708600274985,-582.68,0.00034794,4]
[314866690,1708600274995,-865.74,0.00034794,4]
[314866691,1708600275004,-500.0,0.00034794,4]
[314866692,1708600275014,-2311.0,0.00034794,4]
[314866693,1708600275023,-1482.43,0.00034794,4]
[314866694,1708600275031,-551.53,0.00034794,4]
[314866695,1708600275040,-446.222181,0.00034794,7]
[314866696,1708600275050,-500.0,0.00034794,4]
[314866697,1708600275059,-500.0,0.00034794,4]
[314866698,1708600275069,-2678.11,0.00034794,4]
[314866699,1708600275078,-1196.88,0.00034794,4]
[314866700,1708600275087,-2666.47,0.00034794,4]
[314866701,1708600275095,-716.56,0.00034794,4]
[314866702,1708600275104,-1594.17,0.00034794,4]
[314866703,1708600275113,-446.222181,0.00034794,7]
[314866704,1708600275123,-523.03822721,0.00034794,4]
[314866705,1708600275132,-2349.99,0.00034794,4]
[314866706,1708600275141,-500.0,0.00034794,4]
[314866707,1708600275151,-583.97,0.00034794,4]
[314866708,1708600275160,-202.100542,0.00034794,7]
[314866709,1708600275169,-4020.73,0.00034794,4]
[314866710,1708600275179,-833.96,0.00034794,4]
[314866711,1708600275188,-1160.51,0.00034794,4]
[314866712,1708600275198,-752.97,0.00034794,4]
[314866713,1708600275207,-14360.26,0.00034794,4]
[314866714,1708600275216,-4332.94,0.00034794,4]
[314866715,1708600275226,-544.46,0.00034794,4]
[314866716,1708600275237,-1810.2,0.00034794,4]
[314866717,1708600275248,-151.0,0.00034794,7]
[314866718,1708600275258,-202.100542,0.00034794,7]
[314866719,1708600275267,-500.0,0.00034794,4]
[314866720,1708600275276,-2148.35,0.00034794,4]
[314866721,1708600275287,-1131.714026,0.00034794,7]
[314866722,1708600275296,-19276.26,0.00034794,4]
[314866723,1708600275305,-671.37,0.00034794,4]
[314866724,1708600275318,-1131.714026,0.00034794,7]
[314866725,1708600275327,-500.0,0.00034794,4]
[314866726,1708600275336,-986.09,0.00034794,4]
[314866727,1708600275346,-1870.4,0.00034794,4]
[314866728,1708600275355,-265.393979,0.00034794,7]
[314866729,1708600275365,-1227.053742,0.00034794,7]
[314866730,1708600275374,-931.6,0.00034794,4]
[314866731,1708600275383,-265.393979,0.00034794,7]
[314866732,1708600275393,-1227.053742,0.00034794,7]
[314866733,1708600275402,-1547.76,0.00034794,4]
[314866734,1708600275412,-500.0,0.00034794,4]
[314866735,1708600275421,-4049.57,0.00034794,4]
[314866736,1708600275431,-151.0,0.00034794,7]
[314866737,1708600275440,-500.0,0.00034794,4]
[314866738,1708600275450,-500.0,0.00034794,4]
[314866739,1708600275459,-1554.33,0.00034794,4]
[314866740,1708600275469,-500.0,0.00034794,4]
[314866741,1708600275479,-2519.78,0.00034794,4]
[314866742,1708600275488,-8654.19,0.00034794,4]
[314866743,1708600275498,-500.0,0.00034794,4]
[314866744,1708600275507,-151.0,0.00034794,7]
[314866745,1708600275516,-3715.27,0.00034794,4]
[314866746,1708600275525,-1665.41,0.00034794,4]
[314866747,1708600275534,-821.09,0.00034794,4]
[314866748,1708600275543,-500.0,0.00034794,4]
[314866749,1708600275553,-13166.62,0.00034794,4]
[314866750,1708600275564,-4658.31,0.00034794,4]
[314866751,1708600275574,-1665.06,0.00034794,4]
[314866752,1708600275583,-500.0,0.00034794,4]
[314866753,1708600275592,-3233.7,0.00034794,4]
[314866754,1708600275602,-817.29,0.00034794,4]
[314866755,1708600275611,-500.0,0.00034794,4]
[314866756,1708600275621,-1423.69,0.00034794,4]
[314866757,1708600275630,-695.8,0.00034794,4]
[314866758,1708600275639,-500.0,0.00034794,4]
[314866759,1708600275649,-1566.2,0.00034794,4]
[314866760,1708600275659,-186.690926,0.00034794,7]
[314866761,1708600275670,-500.0,0.00034794,4]
[314866762,1708600275679,-151.0,0.00034794,7]
[314866763,1708600275689,-733.99,0.00034794,4]
[314866764,1708600275699,-186.690926,0.00034794,7]
[314866765,1708600275709,-1413.43,0.00034794,4]
[314866766,1708600275719,-885.21,0.00034794,4]
[314866767,1708600275728,-2147.62,0.00034794,4]
[314866768,1708600275737,-3303.22,0.00034794,4]
[314866769,1708600275747,-2718.33,0.00034794,4]
[314866770,1708600275757,-688.85,0.00034794,4]
[314866771,1708600275767,-500.0,0.00034794,4]
[314866772,1708600275775,-500.0,0.00034794,4]
[314866773,1708600275785,-1675.45,0.00034794,4]
[314866774,1708600275795,-536.18,0.00034794,4]
[314866775,1708600275805,-5383.71,0.00034794,4]
[314866776,1708600275817,-1390.47,0.00034794,4]
[314866777,1708600275827,-4657.64,0.00034794,4]
[314866778,1708600275836,-1829.66,0.00034794,4]
[314866779,1708600275845,-822.95,0.00034794,4]
[314866780,1708600275855,-2102.87,0.00034794,4]
[314866781,1708600275864,-1643.047951,0.00034794,7]
[314866782,1708600275874,-942.93,0.00034794,4]
[314866783,1708600275882,-500.0,0.00034794,4]
[314866784,1708600275891,-590.18,0.00034794,4]
[314866785,1708600275901,-1643.047951,0.00034794,7]
[314866786,1708600275910,-2914.61,0.00034794,4]
[314866787,1708600275919,-500.0,0.00034794,4]
[314866788,1708600275928,-500.0,0.00034794,4]
[314866789,1708600275937,-715.23,0.00034794,4]
[314866790,1708600275946,-3180.78,0.00034794,4]
[314866791,1708600275955,-151.0,0.00034794,7]
[314866792,1708600275965,-1839.7,0.00034794,4]
[314866793,1708600275974,-151.0,0.00034794,7]
[314866794,1708600275983,-1881.15,0.00034794,4]
[314866795,1708600275992,-151.0,0.00034794,7]
[314866796,1708600276002,-500.0,0.00034794,4]
[314866797,1708600276011,-151.0,0.00034794,7]
[314866798,1708600276020,-3887.81,0.00034794,4]
[314866799,1708600276030,-1050.77,0.00034794,4]
[314866800,1708600276039,-151.0,0.00034794,7]
[314866801,1708600276049,-8268.15,0.00034794,4]
[314866802,1708600276058,-1213.17,0.00034794,4]
[314866803,1708600276070,-7510.26,0.00034794,4]
[314866804,1708600276080,-500.0,0.00034794,4]
[314866805,1708600276089,-1671.78,0.00034794,4]
[314866806,1708600276099,-500.0,0.00034794,4]
[314866807,1708600276108,-1574.47,0.00034794,4]
[314866808,1708600276117,-753.19,0.00034794,4]
[314866809,1708600276126,-5461.15,0.00034794,4]
[314866810,1708600276135,-500.0,0.00034794,4]
[314866811,1708600276145,-500.0,0.00034794,4]
[314866812,1708600276155,-559.71,0.00034794,4]
[314866813,1708600276165,-1071.46,0.00034794,4]
[314866814,1708600276174,-4000.35,0.00034794,4]
[314866815,1708600276184,-3687.87,0.00034794,4]
[314866816,1708600276195,-500.0,0.00034794,4]
[314866817,1708600276205,-896.71,0.00034794,4]
[314866818,1708600276214,-974.7,0.00034794,4]
[314866819,1708600276224,-1014.16,0.00034794,4]
[314866820,1708600276234,-1028.46,0.00034794,4]
[314866821,1708600276247,-500.0,0.00034794,4]
[314866822,1708600276257,-946.16,0.00034794,4]
[314866823,1708600276267,-2700.14,0.00034794,4]
[314866824,1708600276276,-846.86,0.00034794,4]
[314866825,1708600276286,-1917.65,0.00034794,4]
[314866826,1708600276297,-5256.91,0.00034794,4]
[314866827,1708600276306,-2788.92,0.00034794,4]
[314866828,1708600276319,-1159.41,0.00034794,4]
[314866829,1708600276329,-500.0,0.00034794,4]
[314866830,1708600276339,-219.8,0.00034794,7]
[314866831,1708600276348,-151.0,0.00034794,7]
[314866832,1708600276358,-1114.74,0.00034794,4]
[314866833,1708600276367,-20126.32,0.00034794,4]
[314866834,1708600276377,-961.43,0.00034794,4]
[314866835,1708600276387,-219.8,0.00034794,7]
[314866836,1708600276396,-1368.31,0.00034794,4]
[314866837,1708600276405,-2319.69,0.00034794,4]
[314866838,1708600276415,-3112.62,0.00034794,4]
[314866839,1708600276424,-685.87,0.00034794,4]
[314866840,1708600276434,-6878.71,0.00034794,4]
[314866841,1708600276443,-1155.73,0.00034794,4]
[314866842,1708600276453,-1468.02,0.00034794,4]
[314866843,1708600276463,-1381.64,0.00034794,4]
[314866844,1708600276472,-2278.37,0.00034794,4]
[314866845,1708600276482,-1143.65,0.00034794,4]
[314866846,1708600276491,-500.0,0.00034794,4]
[314866847,1708600276501,-2533.21,0.00034794,4]
[314866848,1708600276510,-1616.59,0.00034794,4]
[314866849,1708600276519,-500.0,0.00034794,4]
[314866850,1708600276529,-423.842206,0.00034794,7]
[314866851,1708600276538,-2250.912461,0.00034794,7]
[314866852,1708600276548,-150.0,0.00034799,30]
[314866853,1708600276557,-204.83288906,0.00034799,30]
[314866854,1708600276568,-6498.73,0.00034799,4]
[314866855,1708600276578,-8028.36,0.00034799,4]
[314866856,1708600276587,-747.63,0.00034799,4]
[314866857,1708600276597,-10796.51,0.00034799,4]
[314866858,1708600276606,-1039.45,0.00034799,4]
[314866859,1708600276616,-7336.86,0.00034799,4]
[314866860,1708600276625,-3205.85,0.00034799,4]
[314866861,1708600276634,-1476.06,0.00034799,4]
[314866862,1708600276644,-1264.68,0.00034799,4]
[314866863,1708600276654,-930.16,0.00034799,4]
[314866864,1708600276663,-1339.7,0.00034799,4]
[314866865,1708600276672,-2319.84,0.00034799,4]
[314866866,1708600276682,-861.01,0.00034799,4]
[314866867,1708600276692,-1723.48,0.00034799,4]
[314866868,1708600276702,-849.6,0.00034799,4]
[314866869,1708600276711,-1234.43,0.00034799,4]
[314866870,1708600276724,-882.39,0.00034799,4]
[314866871,1708600276734,-1388.88,0.00034799,4]
[314866872,1708600276744,-804.39,0.00034799,4]
[314866873,1708600276754,-727.6,0.00034799,4]
[314866874,1708600276765,-727.6,0.00034799,4]
[314866875,1708600276775,-727.6,0.00034799,4]
[314866876,1708600276784,-727.6,0.00034799,4]
[314866877,1708600276794,-727.6,0.00034799,4]
[314866878,1708600276803,-1315.03,0.00034799,4]
[314866879,1708600276815,-401066.78472197,0.000348,5]
[314866880,1708600278012,-500.0,0.00032876,2]
[314866881,1708600278022,-540.66,0.00032876,2]
[314866882,1708600278034,-69.89,0.00032876,2]
[314866883,1708600278043,-665.59139407,0.0003315,4]
[314866884,1708600278291,-7607.42860593,0.0003315,4]
[314866885,1708600278300,-300.76670306,0.0003315,4]
[314866886,1708600278311,-8273.02,0.00033424,4]
[314866887,1708600278322,-8273.02,0.00033698,4]
[314866888,1708600278332,-500.0,0.00033972,4]
[314866889,1708600278341,-758.72,0.00033972,4]
[314866890,1708600278350,-8273.02,0.00033972,4]
[314866891,1708600278360,-1545.61,0.00034246,4]
[314866892,1708600278369,-19158.68,0.00034246,4]
[314866893,1708600278379,-500.0,0.00034246,4]
[314866894,1708600278389,-758.72,0.00034246,4]
[314866895,1708600278398,-8273.02,0.00034246,4]
[314866896,1708600278407,-423.842206,0.00034247,7]
[314866897,1708600278417,-824.740014,0.00034247,7]
[314866898,1708600278427,-2250.912461,0.00034247,7]
[314866899,1708600278437,-824.740014,0.00034247,7]
[314866900,1708600278446,-2250.912461,0.00034247,7]
[314866901,1708600278456,-423.842206,0.00034247,7]
[314866902,1708600278467,-824.740014,0.00034247,7]
[314866903,1708600278477,-2250.912461,0.00034247,7]
[314866904,1708600278486,-824.740014,0.00034247,7]
[314866905,1708600278495,-423.842206,0.00034247,7]
[314866906,1708600278505,-2250.912461,0.00034247,7]
[314866907,1708600278514,-554.98439342,0.0003452,3]
[314866908,1708600278525,-1545.61,0.0003452,4]
[314866909,1708600278534,-19158.68,0.0003452,4]
[314866910,1708600278544,-500.0,0.0003452,4]
[314866911,1708600278554,-758.72,0.0003452,4]
[314866912,1708600278565,-8273.02,0.0003452,4]
[314866913,1708600278574,-423.842206,0.0003452,7]
[314866914,1708600278583,-824.740014,0.0003452,7]
[314866915,1708600278593,-2250.912461,0.0003452,7]
[314866916,1708600278603,-423.842206,0.000346,7]
[314866917,1708600278612,-824.740014,0.000346,7]
[314866918,1708600278622,-1545.61,0.00034794,4]
[314866919,1708600278632,-19158.68,0.00034794,4]
[314866920,1708600278643,-500.0,0.00034794,4]
[314866921,1708600278653,-758.72,0.00034794,4]
[314866922,1708600278663,-8273.02,0.00034794,4]
[314866923,1708600278673,-423.842206,0.00034794,7]
[314866924,1708600278682,-824.740014,0.00034794,7]
[314866925,1708600278692,-215009.35381227,0.000348,5]
[314866926,1708600278730,-2250.912461,0.000346,7]
[314866927,1708600278739,-3500.01337189,0.000348,5]
[314866928,1708600278760,-3530.70611752,0.000348,5]
[314866929,1708600279730,-1282.25,0.00033114,2]
[314866930,1708600279740,-318.21478548,0.00034247,7]
[314866931,1708600279751,-506.52522852,0.00034247,7]
[314866932,1708600279761,-311.46307567,0.00034247,7]
[314866933,1708600279856,-513.27693833,0.00034247,7]
[314866934,1708600279866,-824.740014,0.00034247,7]
[314866935,1708600279876,-824.740014,0.00034247,7]
[314866936,1708600279885,-824.740014,0.0003452,7]
[314866937,1708600279895,-1286.01024651,0.00034794,7]
[314866938,1708600279908,-964.90221449,0.00034794,7]
[314866939,1708600279917,-2753.73439328,0.000348,5]
[314866940,1708600279929,-12553.57951143,0.000348,5]
[314866941,1708600279942,-4501.61200517,0.000348,5]
[314866942,1708600280049,-824.740014,0.000346,7]
[314866943,1708600280058,-10609.4464712,0.000348,5]
[314866944,1708600280074,-1835.21364769,0.000348,5]
[314866945,1708600280086,-66977.1128704,0.000348,5]
[314866946,1708600280850,-407.2704418,0.00032875,4]
[314866947,1708600280860,-184.8604931,0.00032876,2]
[314866948,1708600280980,-90.65209051,0.00032876,2]
[314866949,1708600280989,-500.0,0.00032876,2]
[314866950,1708600280999,-662.976528,0.00034247,7]
[314866951,1708600281007,-662.976528,0.00034247,7]
[314866952,1708600281017,-824.740014,0.00034794,7]
[314866953,1708600281027,-45885.34787357,0.000348,5]
[314866955,1708601118397,1531.9,0.00027,10]
[314866973,1708601432050,-542.77,0.00029127,2]
[314866974,1708601432059,-1000.0,0.00029999,5]
[314866975,1708601432070,-252.49619939,0.00029999,5]
[314866976,1708601432106,-494.4,0.00029999,5]
[314866977,1708601432197,-253.10380061,0.00029999,5]
[314866978,1708601432207,-446.83339435,0.0003,4]
[314866979,1708601432216,-415.41648974,0.00030648,2]
[314866980,1708601432226,-154.54387429,0.00030748,2]
[314866981,1708601432235,-415.41648957,0.00030789,2]
[314866982,1708601432244,-415.41648957,0.0003093,2]
[314866983,1708601432253,-277.84,0.00030941,2]
[314866984,1708601432262,-250.0,0.00030999,2]
[314866985,1708601432271,-1005.49971921,0.00030999,5]
[314866986,1708601432280,-1864.01162733,0.00031,4]
[314866987,1708601432289,-487.15,0.00031007,2]
[314866988,1708601432298,-181.8,0.00031012,10]
[314866989,1708601432307,-499.02,0.00031046,2]
[314866990,1708601432317,-499.99,0.00031046,2]
[314866991,1708601432326,-2000.0,0.00031049,2]
[314866992,1708601432335,-1181.11,0.00031056,2]
[314866993,1708601432344,-415.41648957,0.0003107,2]
[314866994,1708601432354,-182.46,0.00031086,2]
[314866995,1708601432363,-174.49,0.00031093,2]
[314866996,1708601432372,-679.63,0.00031146,2]
[314866997,1708601432381,-500.0,0.00031185,2]
[314866998,1708601432391,-415.41648957,0.00031211,2]
[314866999,1708601432400,-170.66,0.00031258,2]
[314867000,1708601432409,-250.0,0.00031258,2]
[314867001,1708601432419,-1000.0,0.00031349,2]
[314867002,1708601432428,-415.41648957,0.00031352,2]
[314867003,1708601432437,-542.77,0.0003139,2]
[314867004,1708601432446,-157.45,0.00031402,2]
[314867005,1708601432456,-170.66,0.00031423,2]
[314867006,1708601432465,-183.21160443,0.00031493,2]
[314867007,1708601432478,-232.20488514,0.00031493,2]
[314867008,1708601432487,-157.45,0.00031528,2]
[314867009,1708601432497,-170.66,0.00031587,2]
[314867010,1708601432507,-391.40639421,0.00031634,2]
[314867014,1708601432586,-24.01009536,0.00031634,2]
[314867015,1708601432597,-559.98156895,0.00031647,4]
[314867016,1708601432606,-157.45,0.00031654,2]
[314867017,1708601432616,-14612.6901526,0.00031748,2]
[314867018,1708601432626,-170.66,0.00031752,2]
[314867019,1708601432635,-415.41648957,0.00031774,2]
[314867020,1708601432644,-157.45,0.0003178,2]
[314867021,1708601432653,-177.69,0.00031876,2]
[314867022,1708601432663,-157.45,0.00031906,2]
[314867023,1708601432672,-415.41648957,0.00031915,2]
[314867024,1708601432681,-170.66,0.00031916,2]
[314867025,1708601432690,-157.45,0.00032032,2]
[314867026,1708601432699,-415.41648957,0.00032056,2]
[314867027,1708601432708,-170.66,0.00032081,2]
[314867028,1708601432717,-164.5,0.00032103,2]
[314867029,1708601432727,-155.0,0.0003215,2]
[314867030,1708601432737,-157.45,0.00032157,2]
[314867031,1708601432746,-415.41648957,0.00032197,2]
[314867032,1708601432755,-170.66,0.00032245,2]
[314867033,1708601432765,-1123.2,0.00032257,2]
[314867034,1708601432774,-157.45,0.00032283,2]
[314867035,1708601432783,-164.46,0.00032397,2]
[314867036,1708601432792,-157.45,0.00032409,2]
[314867037,1708601432802,-170.66,0.0003241,2]
[314867038,1708601432811,-150.0,0.00032424,2]
[314867039,1708601432820,-177.69,0.00032424,2]
[314867040,1708601432830,-157.45,0.00032535,2]
[314867041,1708601432839,-487.15,0.00032557,2]
[314867042,1708601432849,-170.66,0.00032574,2]
[314867043,1708601432858,-157.45,0.00032661,2]
[314867044,1708601432867,-170.66,0.00032739,2]
[314867045,1708601432877,-577.05490193,0.00032776,2]
[314867046,1708601432886,-577.05490194,0.00032776,2]
[314867047,1708601432895,-197.21398986,0.00032776,4]
[314867048,1708601432905,-153.67944041,0.00032776,6]
[314867049,1708601432914,-157.45,0.00032787,2]
[314867050,1708601432923,-70580.5699262,0.0003279,2]
[314867051,1708601432935,-44231.62751571,0.0003279,2]
[314867052,1708601432947,-26392.39753281,0.0003279,2]
[314867053,1708601438441,-955.3299259,0.0003279,2]
[314867054,1708601438493,-638.24848553,0.0003279,2]
[314867055,1708601438558,-594881.65103145,0.0003279,2]
[314867056,1708601438568,-679.63,0.0003279,2]
[314867057,1708601438580,-161.68,0.00032804,2]
[314867058,1708601438590,-1023.05841047,0.00032874,4]
[314867059,1708601438599,-404.35538904,0.00032875,4]
[314867060,1708601438609,-103327.12932571,0.00032875,4]
[314867061,1708601438621,-523.88372643,0.00032876,2]
[314867062,1708601438631,-500.0,0.00032876,2]
[314867063,1708601438641,-503.99876947,0.00032876,2]
[314867064,1708601438651,-570.82953736,0.00032876,2]
[314867065,1708601438661,-213.04636653,0.00032876,2]
[314867066,1708601438672,-315.74414032,0.00032876,2]
[314867067,1708601438682,-531.91150754,0.00032876,2]
[314867068,1708601438692,-500.0,0.00032876,2]
[314867069,1708601438702,-609.91428117,0.00032876,15]
[314867070,1708601438713,-150.70890816,0.00032876,2]
[314867071,1708601438723,-500.0,0.00032876,2]
[314867072,1708601438733,-500.0,0.00032876,2]
[314867073,1708601438743,-500.0,0.00032876,2]
[314867074,1708601438753,-562.93633082,0.00032876,2]
[314867075,1708601438764,-500.0,0.00032876,2]
[314867076,1708601438774,-500.0,0.00032876,2]
[314867077,1708601438784,-500.0,0.00032876,2]
[314867078,1708601438794,-509.54018765,0.00032876,2]
[314867079,1708601438805,-500.0,0.00032876,2]
[314867080,1708601438814,-500.0,0.00032876,2]
[314867081,1708601438824,-500.0,0.00032876,2]
[314867082,1708601438834,-586.34,0.00032876,2]
[314867084,1708601438844,-500.0,0.00032876,2]
[314867086,1708601438854,-500.0,0.00032876,2]
[314867088,1708601438864,-500.0,0.00032876,2]
[314867091,1708601438878,-500.0,0.00032876,2]
[314867093,1708601438888,-374.47719534,0.00032876,2]
[314867094,1708601438898,-500.0,0.00032876,2]
[314867096,1708601438908,-500.0,0.00032876,2]
[314867098,1708601438917,-500.0,0.00032876,2]
[314867100,1708601438927,-500.0,0.00032876,2]
[314867102,1708601438938,-500.0,0.00032876,2]
[314867103,1708601438948,-500.0,0.00032876,2]
[314867104,1708601438960,-500.0,0.00032876,2]
[314867105,1708601438970,-500.0,0.00032876,2]
[314867106,1708601438980,-500.0,0.00032876,2]
[314867107,1708601438990,-500.0,0.00032876,2]
[314867108,1708601439000,-500.0,0.00032876,2]
[314867109,1708601439010,-500.0,0.00032876,2]
[314867110,1708601439020,-500.0,0.00032876,2]
[314867111,1708601439030,-500.0,0.00032876,2]
[314867112,1708601439040,-500.0,0.00032876,2]
[314867113,1708601439050,-500.0,0.00032876,2]
[314867114,1708601439060,-500.0,0.00032876,2]
[314867115,1708601439070,-500.0,0.00032876,2]
[314867116,1708601439080,-500.0,0.00032876,2]
[314867117,1708601439090,-500.0,0.00032876,2]
[314867118,1708601439100,-500.0,0.00032876,2]
[314867119,1708601439109,-506.74591003,0.00032876,2]
[314867120,1708601439119,-500.0,0.00032876,2]
[314867121,1708601439129,-500.0,0.00032876,2]
[314867122,1708601439139,-500.0,0.00032876,2]
[314867123,1708601439149,-500.0,0.00032876,2]
[314867124,1708601439159,-500.0,0.00032876,2]
[314867125,1708601439169,-500.0,0.00032876,2]
[314867126,1708601439179,-500.0,0.00032876,2]
[314867127,1708601439189,-500.0,0.00032876,2]
[314867128,1708601439198,-500.0,0.00032876,2]
[314867129,1708601439208,-678.22,0.00032876,2]
[314867130,1708601439218,-500.0,0.00032876,2]
[314867131,1708601439228,-500.0,0.00032876,2]
[314867132,1708601439239,-500.0,0.00032876,2]
[314867133,1708601439248,-500.0,0.00032876,2]
[314867134,1708601439258,-500.0,0.00032876,2]
[314867135,1708601439267,-500.0,0.00032876,2]
[314867136,1708601439278,-500.0,0.00032876,2]
[314867137,1708601439287,-500.0,0.00032876,2]
[314867138,1708601439297,-500.0,0.00032876,2]
[314867139,1708601439700,-500.0,0.00032876,2]
[314867140,1708601439736,-348.39058455,0.00032876,2]
[314867141,1708601439747,-500.0,0.00032876,2]
[314867142,1708601439757,-161.24193541,0.00032876,2]
[314867143,1708601439767,-500.0,0.00032876,2]
[314867144,1708601439777,-500.0,0.00032876,2]
[314867145,1708601439787,-500.0,0.00032876,2]
[314867146,1708601439796,-500.0,0.00032876,2]
[314867147,1708601439806,-500.0,0.00032876,2]
[314867148,1708601439816,-500.0,0.00032876,2]
[314867149,1708601439825,-500.0,0.00032876,2]
[314867150,1708601439836,-500.0,0.00032876,2]
[314867151,1708601439846,-500.0,0.00032876,2]
[314867152,1708601439855,-500.0,0.00032876,2]
[314867153,1708601439865,-500.0,0.00032876,2]
[314867154,1708601439875,-500.0,0.00032876,2]
[314867155,1708601439885,-500.0,0.00032876,2]
[314867156,1708601439894,-500.0,0.00032876,2]
[314867157,1708601439904,-540.26,0.00032876,2]
[314867158,1708601439914,-500.0,0.00032876,2]
[314867159,1708601439923,-500.0,0.00032876,2]
[314867160,1708601439933,-547.25,0.00032876,2]
[314867161,1708601439943,-500.0,0.00032876,2]
[314867162,1708601439953,-500.0,0.00032876,2]
[314867163,1708601439963,-500.0,0.00032876,2]
[314867164,1708601439972,-500.0,0.00032876,2]
[314867165,1708601439982,-500.0,0.00032876,2]
[314867166,1708601439991,-625.27,0.00032876,2]
[314867167,1708601440002,-557.6195034,0.00032876,2]
[314867168,1708601440011,-626.08,0.00032876,2]
[314867169,1708601440021,-500.0,0.00032876,2]
[314867170,1708601440031,-551.61,0.00032876,2]
[314867171,1708601440041,-500.0,0.00032876,2]
[314867172,1708601440051,-595.02,0.00032876,2]
[314867173,1708601440060,-500.0,0.00032876,2]
[314867174,1708601440081,-500.0,0.00032876,2]
[314867175,1708601440092,-500.0,0.00032876,2]
[314867176,1708601440102,-500.0,0.00032876,2]
[314867177,1708601440112,-500.0,0.00032876,2]
[314867178,1708601440123,-500.0,0.00032876,2]
[314867179,1708601440132,-500.0,0.00032876,2]
[314867180,1708601440142,-500.0,0.00032876,2]
[314867181,1708601440152,-1094.32,0.00032876,2]
[314867182,1708601440162,-500.0,0.00032876,2]
[314867183,1708601440172,-500.0,0.00032876,2]
[314867184,1708601440183,-500.0,0.00032876,2]
[314867185,1708601440193,-500.0,0.00032876,2]
[314867186,1708601440204,-500.0,0.00032876,2]
[314867187,1708601440214,-370.67686362,0.00032876,2]
[314867188,1708601440224,-500.0,0.00032876,2]
[314867189,1708601440234,-500.0,0.00032876,2]
[314867190,1708601440244,-309.10646831,0.00032876,2]
[314867191,1708601440254,-500.0,0.00032876,2]
[314867192,1708601440264,-500.0,0.00032876,2]
[314867193,1708601440274,-500.0,0.00032876,2]
[314867194,1708601440284,-680.34,0.00032876,2]
[314867195,1708601440295,-500.0,0.00032876,2]
[314867196,1708601440305,-500.0,0.00032876,2]
[314867197,1708601440315,-500.0,0.00032876,2]
[314867198,1708601440325,-500.0,0.00032876,2]
[314867199,1708601440336,-500.0,0.00032876,2]
[314867200,1708601440345,-500.0,0.00032876,2]
[314867201,1708601440355,-500.0,0.00032876,2]
[314867202,1708601440365,-500.0,0.00032876,2]
[314867203,1708601440375,-500.0,0.00032876,2]
[314867204,1708601440385,-500.0,0.00032876,2]
[314867205,1708601440395,-500.0,0.00032876,2]
[314867206,1708601440404,-500.0,0.00032876,2]
[314867207,1708601440414,-500.0,0.00032876,2]
[314867208,1708601440424,-500.0,0.00032876,2]
[314867209,1708601440434,-500.0,0.00032876,2]
[314867210,1708601440444,-507.89838842,0.00032876,14]
[314867211,1708601440455,-500.0,0.00032876,2]
[314867212,1708601440465,-500.0,0.00032876,2]
[314867213,1708601440475,-500.0,0.00032876,2]
[314867214,1708601440484,-500.0,0.00032876,2]
[314867215,1708601440494,-500.0,0.00032876,2]
[314867216,1708601440504,-500.0,0.00032876,2]
[314867217,1708601440514,-500.0,0.00032876,2]
[314867218,1708601440525,-500.0,0.00032876,2]
[314867219,1708601440536,-505.39960691,0.00032876,2]